bitfinex-derivatives/quotes_BTCF0:USTF0_20251110
["timestamp","ask_amount","ask_price","bid_price","bid_amount"]
[1762741984795,0.20450387,105970.0,105960.0,0.13349684]
[1762741985186,0.20450387,105970.0,105960.0,0.22789404]
[1762741985989,0.20450387,105970.0,105960.0,0.13349684]
[1762741986193,0.20450387,105970.0,105960.0,0.22789404]
[1762741986794,0.20450387,105970.0,105960.0,0.13349684]
[1762741987197,0.20450387,105970.0,105960.0,0.1212219]
[1762741987493,0.20450387,105970.0,105960.0,0.03291773]
[1762741987797,0.22438714,105970.0,105960.0,0.1212219]
[1762741988091,0.22438714,105970.0,105960.0,0.2156191]
[1762741988284,0.22438714,105970.0,105960.0,0.1212219]
[1762741989088,0.22438714,105970.0,105960.0,0.2156191]
[1762741990494,0.22438714,105970.0,105960.0,0.1212219]
[1762741991088,0.22438714,105970.0,105960.0,0.2156191]
[1762741991791,0.22438714,105970.0,105960.0,0.1212219]
[1762741992396,0.22438714,105970.0,105960.0,0.2156191]
[1762741992592,0.1734796,105970.0,105960.0,0.2156191]
[1762741992900,0.1734796,105970.0,105960.0,0.1212219]
[1762741993194,0.0790913,105970.0,105960.0,0.2156191]
[1762741993596,0.1734796,105970.0,105960.0,0.2156191]
[1762741993798,0.0790913,105970.0,105960.0,0.2156191]
[1762741993997,0.1734796,105970.0,105960.0,0.03291773]
[1762741994192,0.1734796,105970.0,105960.0,0.1212219]
[1762741994497,0.0790913,105970.0,105960.0,0.2156191]
[1762741995394,0.58518704,105970.0,105960.0,0.1212219]
[1762741995898,0.22438704,105970.0,105960.0,0.2156191]
[1762741996092,0.58518704,105970.0,105960.0,0.1212219]
[1762741996293,0.22438704,105970.0,105960.0,0.1212219]
[1762741996492,0.58518704,105970.0,105960.0,0.12731493]
[1762741996687,0.12999884,105970.0,105960.0,0.2156191]
[1762741997394,0.09436884,105970.0,105960.0,0.66463837]
[1762741997599,0.05090754,105980.0,105970.0,0.1388483]
[1762741997796,0.05090754,105980.0,105970.0,0.58795247]
[1762741998697,0.07228754,105980.0,105970.0,0.58795247]
[1762741998999,0.09475754,105980.0,105970.0,0.59195247]
[1762741999202,0.11090557,105980.0,105970.0,0.13676417]
[1762741999398,0.20528487,105980.0,105970.0,0.59195237]
[1762741999900,0.20528487,105980.0,105970.0,0.49756417]
[1762742000098,0.20528487,105980.0,105970.0,0.59195247]
[1762742000299,0.20528487,105980.0,105970.0,0.50756417]
[1762742000901,0.20528487,105980.0,105970.0,0.60195247]
[1762742001096,0.11090557,105980.0,105970.0,0.60195247]
[1762742001405,0.20528497,105980.0,105970.0,0.5136483]
[1762742001605,0.20528497,105980.0,105970.0,0.60195247]
[1762742002497,0.20528497,105980.0,105970.0,0.50756417]
[1762742002697,0.20528497,105980.0,105970.0,0.60195247]
[1762742002904,0.11090557,105980.0,105970.0,0.60195247]
[1762742003198,0.05999803,105980.0,105970.0,0.60195247]
[1762742003405,0.05999803,105980.0,105970.0,0.58967917]
[1762742003591,0.15437743,105980.0,105970.0,0.4069867]
[1762742003796,0.2426816,105980.0,105970.0,0.014]
[1762742004001,0.15437743,105980.0,105970.0,0.10230417]
[1762742004503,0.22221465,105980.0,105970.0,0.10230417]
[1762742004799,0.67131882,105980.0,105970.0,0.014]
[1762742005099,0.1522272,105960.0,105950.0,0.21149168]
[1762742005290,0.20530759,105960.0,105950.0,0.10276558]
[1762742005900,0.20530759,105960.0,105950.0,0.21949168]
[1762742006108,0.11091039,105960.0,105950.0,0.21949168]
[1762742006697,0.20530759,105960.0,105950.0,0.21949168]
[1762742006897,0.20530759,105960.0,105950.0,0.22449168]
[1762742007102,0.11091039,105960.0,105950.0,0.22449168]
[1762742007307,0.11091039,105960.0,105950.0,0.23249168]
[1762742007700,0.06002803,105960.0,105950.0,0.23249168]
[1762742008096,0.06002803,105960.0,105950.0,0.59329168]
[1762742008301,0.06002803,105960.0,105950.0,0.59229168]
[1762742009598,0.07990135,105960.0,105950.0,0.59229168]
[1762742009799,0.07075568,105960.0,105950.0,0.68859585]
[1762742009995,0.07075568,105960.0,105950.0,1.51228151]
[1762742010201,0.12567314,105980.0,105970.0,0.1045783]
[1762742010510,0.22225047,105980.0,105970.0,0.45929417]
[1762742010694,0.22225047,105980.0,105970.0,0.09849417]
[1762742011204,0.22225047,105980.0,105970.0,0.55368247]
[1762742011401,0.22225047,105980.0,105970.0,0.09849417]
[1762742011601,0.22225047,105980.0,105970.0,0.10249417]
[1762742011801,0.22225047,105980.0,105970.0,0.11049417]
[1762742012606,0.22225047,105980.0,105970.0,0.02219]
[1762742012607,0.58305047,105980.0,105970.0,0.02219]
[1762742012807,0.22225047,105980.0,105970.0,0.11049417]
[1762742013112,0.22225047,105980.0,105970.0,0.20488247]
[1762742013501,0.22225047,105980.0,105970.0,0.11049417]
[1762742013703,0.6035115,105980.0,105970.0,0.012]
[1762742014304,0.58305047,105980.0,105970.0,0.012]
[1762742014698,0.51520733,105980.0,105970.0,0.012]
[1762742015108,0.51520733,105980.0,105970.0,0.008]
[1762742015702,0.6035115,105980.0,105970.0,0.008]
[1762742015899,0.0943883,105970.0,105960.0,0.08844558]
[1762742016103,0.51521633,105970.0,105960.0,0.08844558]
[1762742016302,0.15441633,105970.0,105960.0,0.08844558]
[1762742016506,0.15441633,105970.0,105960.0,0.18284278]
[1762742017814,0.15441633,105970.0,105960.0,0.19384278]
[1762742018614,0.6035205,105970.0,105960.0,0.01114141]
[1762742019116,0.51521633,105970.0,105960.0,0.01114141]
[1762742022812,0.51521633,105970.0,105940.0,0.63655802]
[1762742022813,0.1522361,105950.0,105940.0,0.39933412]
[1762742023001,0.15443413,105950.0,105940.0,0.39474412]
[1762742023208,0.12044207,105950.0,105940.0,0.39474412]
[1762742023517,0.12044207,105950.0,105940.0,0.00468629]
[1762742024019,0.12044207,105950.0,105940.0,0.02768629]
[1762742024317,0.12044207,105950.0,105940.0,0.04268629]
[1762742024708,0.12044207,105950.0,105940.0,0.02768629]
[1762742024909,0.12044207,105950.0,105940.0,0.04068629]
[1762742025318,0.12044207,105950.0,105940.0,0.01768629]
[1762742025518,0.12044207,105950.0,105940.0,0.03668629]
[1762742025819,0.12044207,105950.0,105940.0,0.03209629]
[1762742026612,0.48124207,105950.0,105940.0,0.03209629]
[1762742027012,0.55967577,105950.0,105940.0,0.03209629]
[1762742027314,0.152245,105940.0,105930.0,0.03398924]
[1762742027514,0.51524303,105940.0,105930.0,0.03398924]
[1762742028315,0.51534828,105940.0,105930.0,0.05671924]
[1762742028620,0.51634828,105940.0,105930.0,0.06298924]
[1762742038023,0.15554828,105940.0,105930.0,0.28055684]
[1762742038224,0.11912828,105940.0,105930.0,0.69869408]
[1762742038626,0.11912828,105940.0,105930.0,0.66484625]
[1762742038923,0.02471328,105940.0,105930.0,0.66484625]
[1762742039914,0.04769328,105940.0,105930.0,0.66484625]
[1762742040114,0.00110525,105940.0,105930.0,0.90084625]
[1762742040422,0.00110525,105940.0,105930.0,1.50084625]
[1762742040626,0.05850141,105960.0,105950.0,0.2221398]
[1762742040815,0.02376944,105960.0,105950.0,0.5829398]
[1762742041015,0.15459664,105960.0,105950.0,0.43938081]
[1762742041214,0.00233944,105960.0,105950.0,0.62336061]
[1762742041415,0.00014141,105960.0,105950.0,0.85932061]
[1762742041615,0.00014141,105960.0,105950.0,1.22336061]
[1762742041924,0.15459654,105960.0,105950.0,0.43938081]
[1762742042224,0.06019944,105960.0,105950.0,0.62336051]
[1762742042427,0.14114654,105960.0,105950.0,0.62336051]
[1762742042621,0.15459654,105960.0,105950.0,0.4839437]
[1762742043132,0.15659654,105960.0,105950.0,0.4839437]
[1762742044121,0.15559654,105960.0,105950.0,0.4909437]
[1762742044429,0.15559654,105960.0,105950.0,0.4939437]
[1762742044625,0.51639654,105960.0,105950.0,0.05471]
[1762742045023,0.51639654,105960.0,105950.0,0.01]
[1762742045217,0.51739654,105960.0,105950.0,0.06571]
[1762742045425,0.15659654,105960.0,105950.0,0.06571]
[1762742045823,0.51739654,105960.0,105950.0,0.06571]
[1762742048628,0.51739654,105960.0,105950.0,0.021]
[1762742059745,0.151365,105940.0,105930.0,1e-08]
[1762742059951,0.87516303,105940.0,105930.0,1e-08]
[1762742061946,0.1518328,105920.0,105910.0,0.03387081]
[1762742062144,0.51483083,105920.0,105910.0,0.03387081]
[1762742063453,0.51683083,105920.0,105910.0,0.04887081]
[1762742064051,0.87763083,105920.0,105910.0,0.04887081]
[1762742064250,0.87763083,105920.0,105910.0,0.015]
[1762742064554,0.89728087,105920.0,105910.0,0.015]
[1762742065247,0.87763083,105920.0,105910.0,0.015]
[1762742065955,0.1518417,105910.0,105900.0,0.05094762]
[1762742066160,0.51483973,105910.0,105900.0,0.05094762]
[1762742067753,0.51483973,105910.0,105900.0,0.00014141]
[1762742068155,0.5953446,105910.0,105900.0,1e-08]
[1762742068451,0.51683973,105910.0,105900.0,1e-08]
[1762742069149,0.51683973,105910.0,105900.0,0.00400001]
[1762742069348,0.51683973,105910.0,105900.0,0.01]
[1762742069756,0.1518506,105900.0,105890.0,0.05102169]
[1762742069950,0.51484863,105900.0,105890.0,0.05102169]
[1762742070455,0.16098671,105910.0,105900.0,0.1512506]
[1762742070646,0.01133944,105910.0,105900.0,0.64136168]
[1762742070853,0.00914141,105910.0,105900.0,1.47744168]
[1762742071054,0.1163084,105930.0,105920.0,0.1495828]
[1762742071357,0.15402643,105930.0,105920.0,0.12274487]
[1762742071858,0.51482643,105930.0,105920.0,0.04424]
[1762742072560,0.51582643,105930.0,105920.0,0.04624]
[1762742072959,0.53082643,105930.0,105920.0,0.04824]
[1762742074160,0.53682643,105930.0,105920.0,0.04724]
[1762742074657,0.17602643,105930.0,105920.0,0.40804]
[1762742075047,0.17602643,105930.0,105920.0,0.54676021]
[1762742075556,0.17602643,105930.0,105920.0,0.55767021]
[1762742075956,0.08159803,105930.0,105920.0,0.65210301]
[1762742076165,0.16305183,105930.0,105920.0,0.65210301]
[1762742076557,0.16305183,105930.0,105920.0,0.55767021]
[1762742077256,0.16305183,105930.0,105920.0,0.65210291]
[1762742079066,0.16305183,105930.0,105920.0,0.55767021]
[1762742079256,0.16305183,105930.0,105920.0,0.60531569]
[1762742079861,0.16305183,105930.0,105920.0,0.51088299]
[1762742080166,0.16305183,105930.0,105920.0,0.60531569]
[1762742080956,0.17602183,105930.0,105920.0,0.51088299]
[1762742081155,0.17602183,105930.0,105920.0,0.5616892]
[1762742081356,0.17602183,105930.0,105920.0,0.51088299]
[1762742081556,0.17602183,105930.0,105920.0,0.60531579]
[1762742081854,0.022,105930.0,105920.0,0.892122]
[1762742082052,0.1164239,105930.0,105920.0,0.892122]
[1762742082558,0.1164239,105930.0,105920.0,0.656122]
[1762742082759,0.022,105930.0,105920.0,0.656122]
[1762742082958,0.1164239,105930.0,105920.0,0.892122]
[1762742083255,0.16305193,105930.0,105920.0,0.5616892]
[1762742083563,0.17602193,105930.0,105920.0,0.49997299]
[1762742083765,0.17602193,105930.0,105920.0,0.40804]
[1762742086768,0.17602193,105930.0,105920.0,0.04724]
[1762742087073,0.19567927,105930.0,105920.0,0.04724]
[1762742088972,0.55647927,105930.0,105920.0,0.003]
[1762742091072,0.55647927,105930.0,105910.0,0.05094762]
[1762742091073,0.1527328,105920.0,105910.0,0.05094762]
[1762742091269,0.51573083,105920.0,105910.0,0.05094762]
[1762742091871,0.53539047,105920.0,105910.0,0.00014141]
[1762742092378,0.53639047,105920.0,105910.0,0.00414141]
[1762742092869,0.53739047,105920.0,105910.0,0.00714141]
[1762742094379,0.51773083,105920.0,105910.0,0.04107073]
[1762742094872,0.51773083,105920.0,105910.0,3e-08]
[1762742095081,0.1527506,105900.0,105890.0,0.05088028]
[1762742095275,0.51574863,105900.0,105890.0,0.05088028]
[1762742096273,0.51674863,105900.0,105890.0,0.05588028]
[1762742096669,0.15694863,105900.0,105890.0,0.10609028]
[1762742096978,0.51774863,105900.0,105890.0,0.10609028]
[1762742097375,0.51574863,105900.0,105890.0,0.09709028]
[1762742097574,0.51774863,105900.0,105890.0,0.10009028]
[1762742099075,0.51774863,105900.0,105890.0,0.05688028]
[1762742099282,0.51774863,105900.0,105890.0,8e-08]
[1762742099483,0.1527595,105890.0,105880.0,0.00014141]
[1762742099679,0.15495753,105890.0,105880.0,0.00014141]
[1762742099878,0.87655753,105890.0,105880.0,0.00014141]
[1762742100281,0.87665061,105890.0,105880.0,0.00014141]
[1762742100674,0.87665061,105890.0,105870.0,0.06780101]
[1762742100675,0.1527684,105880.0,105870.0,0.06780101]
[1762742100874,0.51576643,105880.0,105870.0,0.06780101]
[1762742101681,0.1527774,105870.0,105860.0,0.00014141]
[1762742101979,0.1527952,105850.0,105840.0,0.04332091]
[1762742102181,0.15508522,105850.0,105840.0,0.49862501]
[1762742102975,0.00229002,105850.0,105840.0,0.604458]
[1762742103283,0.00109199,105850.0,105840.0,1.28057293]
[1762742103481,0.00109199,105850.0,105840.0,1.51677293]
[1762742103682,0.00209199,105850.0,105840.0,1.51877293]
[1762742103890,0.00209199,105850.0,105840.0,1.28257293]
[1762742104488,0.00209199,105850.0,105840.0,1.51877293]
[1762742105783,0.00014141,105860.0,105850.0,0.1516052]
[1762742105993,0.1388853,105890.0,105880.0,0.05711]
[1762742106178,0.14045572,105890.0,105880.0,0.50984299]
[1762742106486,0.11756572,105890.0,105880.0,0.50984299]
[1762742106989,0.02310042,105890.0,105880.0,0.84043149]
[1762742107388,0.02310042,105890.0,105880.0,0.60431149]
[1762742107981,0.11755992,105890.0,105880.0,0.60431149]
[1762742108288,0.12855992,105890.0,105880.0,0.60431149]
[1762742108495,0.12855992,105890.0,105880.0,0.84043149]
[1762742108682,0.12855992,105890.0,105880.0,0.60431149]
[1762742108878,0.12855992,105890.0,105880.0,0.84143149]
[1762742108879,0.11955992,105890.0,105880.0,0.84143149]
[1762742109081,0.11955992,105890.0,105880.0,0.68128428]
[1762742109391,0.16397992,105890.0,105880.0,0.58681578]
[1762742109590,0.16397992,105890.0,105880.0,0.58881578]
[1762742110087,0.16397992,105890.0,105880.0,0.51284299]
[1762742110292,0.16297992,105890.0,105880.0,0.50984299]
[1762742110482,0.16397992,105890.0,105880.0,0.51084299]
[1762742111383,0.17785992,105890.0,105880.0,0.51084299]
[1762742111579,0.17785992,105890.0,105880.0,0.40501]
[1762742112187,0.53865992,105890.0,105880.0,0.02215]
[1762742113686,0.53865992,105890.0,105880.0,0.001]
[1762742117388,0.53865992,105890.0,105880.0,0.02215]
[1762742117593,0.53865992,105890.0,105880.0,0.04421]
[1762742118294,0.17785992,105890.0,105880.0,0.04421]
[1762742118493,0.53865992,105890.0,105880.0,0.04421]
[1762742120492,0.17785992,105890.0,105880.0,0.04421]
[1762742121199,0.02510042,105890.0,105880.0,0.60393139]
[1762742121393,0.02290239,105890.0,105880.0,1.58745139]
[1762742121897,0.02510042,105890.0,105880.0,1.34558299]
[1762742122093,0.14254992,105890.0,105880.0,0.58403032]
[1762742122297,0.15712753,105890.0,105880.0,0.50946299]
[1762742124399,0.08454099,105890.0,105880.0,0.60393139]
[1762742124698,0.07089099,105890.0,105880.0,0.60393139]
[1762742125101,0.07089099,105890.0,105880.0,0.50946299]
[1762742125602,0.16535049,105890.0,105880.0,0.50946299]
[1762742126002,0.17900049,105890.0,105880.0,0.49694299]
[1762742126204,0.17900049,105890.0,105880.0,0.40501]
[1762742127006,0.17900049,105890.0,105880.0,0.04421]
[1762742127304,0.17900049,105890.0,105880.0,0.40501]
[1762742127502,0.17900049,105890.0,105880.0,0.41753]
[1762742128404,0.17900049,105890.0,105880.0,0.05673]
[1762742128600,0.17900049,105890.0,105880.0,0.14866299]
[1762742129908,0.17900049,105890.0,105880.0,0.13614299]
[1762742130107,0.17900049,105890.0,105880.0,0.04421]
[1762742130406,0.17900049,105890.0,105880.0,0.001]
[1762742130709,0.53980049,105890.0,105880.0,0.001]
[1762742131213,0.53980049,105890.0,105880.0,0.00010431]
[1762742134711,0.1529384,105880.0,105870.0,0.00014141]
[1762742134914,0.53780939,105880.0,105870.0,0.00014141]
[1762742136107,0.53880939,105880.0,105870.0,0.00014141]
[1762742136506,0.53980939,105880.0,105870.0,0.00314141]
[1762742137215,0.04482,105850.0,105840.0,0.68189753]
[1762742137415,0.14151323,105850.0,105840.0,0.68189753]
[1762742137612,0.04701803,105850.0,105840.0,0.68189753]
[1762742138613,0.00219803,105850.0,105840.0,0.68189753]
[1762742139009,0.04496141,105860.0,105850.0,0.1529352]
[1762742139312,0.00233944,105860.0,105850.0,0.60566819]
[1762742139513,0.02532944,105860.0,105850.0,0.60566819]
[1762742139915,0.04715944,105860.0,105850.0,0.60566819]
[1762742140219,0.04915944,105860.0,105850.0,0.60666819]
[1762742140421,0.05115944,105860.0,105850.0,0.60666819]
[1762742141120,0.05115944,105860.0,105850.0,0.65359132]
[1762742143513,0.02932944,105860.0,105850.0,0.65359132]
[1762742145923,0.05115944,105860.0,105850.0,0.65359132]
[1762742146627,0.14564584,105860.0,105850.0,0.55909612]
[1762742146821,0.15929584,105860.0,105850.0,0.42024]
[1762742147025,0.15929584,105860.0,105850.0,0.04554]
[1762742147225,0.05115944,105860.0,105850.0,0.5147353]
[1762742147425,0.14564584,105860.0,105850.0,0.5147353]
[1762742147626,0.14564584,105860.0,105850.0,0.42024]
[1762742148528,0.14564584,105860.0,105850.0,0.5147353]
[1762742149418,0.14564584,105860.0,105850.0,0.42024]
[1762742149620,0.15940584,105860.0,105850.0,0.40634]
[1762742149813,0.15940584,105860.0,105850.0,0.04554]
[1762742150018,0.15940584,105860.0,105850.0,0.40634]
[1762742150526,0.15940584,105860.0,105850.0,0.04554]
[1762742151423,0.06491944,105860.0,105850.0,0.05913]
[1762742151628,0.05115944,105860.0,105850.0,0.5144252]
[1762742151818,0.02932944,105860.0,105850.0,0.5144252]
[1762742152127,0.05037944,105860.0,105850.0,0.5144252]
[1762742152825,0.15862574,105860.0,105850.0,0.41993]
[1762742153027,0.15862574,105860.0,105850.0,0.04554]
[1762742160826,0.15862574,105860.0,105850.0,0.05913]
[1762742161024,0.15862574,105860.0,105850.0,0.1400353]
[1762742162218,0.02932944,105860.0,105850.0,0.5144253]
[1762742162422,0.04966944,105860.0,105850.0,0.65328142]
[1762742162824,0.14415584,105860.0,105850.0,0.65328142]
[1762742163026,0.15791584,105860.0,105850.0,0.65328142]
[1762742163228,0.17991691,105860.0,105850.0,0.65328142]
[1762742163425,0.17991691,105860.0,105850.0,0.55878612]
[1762742163624,0.17991691,105860.0,105850.0,0.18439612]
[1762742164838,0.17991691,105860.0,105850.0,0.1240975]
[1762742169730,0.17991691,105860.0,105850.0,0.2185928]
[1762742170432,0.07167051,105860.0,105850.0,0.5929828]
[1762742171638,0.17991691,105860.0,105850.0,0.1376875]
[1762742171832,0.17991691,105860.0,105850.0,0.4984875]
[1762742172133,0.17991691,105860.0,105850.0,0.1376875]
[1762742172444,0.07167051,105860.0,105850.0,0.5929828]
[1762742172634,0.02614248,105860.0,105850.0,0.5929828]
[1762742172935,0.02614248,105860.0,105850.0,0.8291428]
[1762742173638,0.02614248,105860.0,105850.0,0.5929828]
[1762742173940,0.00414141,105860.0,105850.0,0.9765428]
[1762742174528,0.00414141,105860.0,105850.0,0.7403828]
[1762742174732,0.02609774,105860.0,105850.0,0.7403828]
[1762742174941,0.00414141,105860.0,105850.0,0.9765428]
[1762742175239,0.02609755,105860.0,105850.0,0.9765428]
[1762742176030,0.02609755,105860.0,105850.0,0.7403828]
[1762742176238,0.07162558,105860.0,105850.0,0.7403828]
[1762742177534,0.16611198,105860.0,105850.0,0.6458875]
[1762742178038,0.07162558,105860.0,105850.0,0.7403828]
[1762742179835,0.07162558,105860.0,105850.0,0.6618253]
[1762742180033,0.07162558,105860.0,105850.0,0.7403828]
[1762742180829,0.05057558,105860.0,105850.0,0.7403828]
[1762742181031,0.07199558,105860.0,105850.0,0.7403828]
[1762742182147,0.16648198,105860.0,105850.0,0.6458875]
[1762742182341,0.16648198,105860.0,105850.0,0.7403828]
[1762742182534,0.07199558,105860.0,105850.0,0.7403828]
[1762742184241,0.02829558,105860.0,105850.0,0.5929828]
[1762742184633,0.56379789,105890.0,105880.0,0.04331]
[1762742184931,0.58798338,105890.0,105880.0,0.1095835]
[1762742185131,0.58798338,105890.0,105880.0,0.1019735]
[1762742185335,0.58798338,105890.0,105880.0,0.0875135]
[1762742185843,0.58798338,105890.0,105880.0,0.1049735]
[1762742186135,0.53252098,105890.0,105880.0,0.1994421]
[1762742186540,0.17172098,105890.0,105880.0,0.5602421]
[1762742186740,0.14872098,105890.0,105880.0,0.5572421]
[1762742187040,0.15072098,105890.0,105880.0,0.5592421]
[1762742187240,0.16272098,105890.0,105880.0,0.5592421]
[1762742187443,0.25718068,105890.0,105880.0,0.4647735]
[1762742187628,0.20628519,105890.0,105880.0,0.1039735]
[1762742187831,0.61798068,105890.0,105880.0,0.002]
[1762742188441,0.1513386,105880.0,105870.0,0.10761891]
[1762742188640,0.15353663,105880.0,105870.0,0.10761891]
[1762742189841,0.16353663,105880.0,105870.0,0.10761891]
[1762742191136,0.16353663,105880.0,105870.0,0.56289641]
[1762742191641,0.17853663,105880.0,105870.0,0.56489641]
[1762742192444,0.17853663,105880.0,105870.0,0.47041891]
[1762742192641,0.17853663,105880.0,105870.0,0.56489641]
[1762742193649,0.17853663,105880.0,105870.0,0.56489651]
[1762742194229,0.17853663,105880.0,105870.0,0.47041891]
[1762742196539,0.17853663,105880.0,105870.0,0.56489641]
[1762742196845,0.049117,105880.0,105870.0,0.56489641]
[1762742197049,0.04691897,105880.0,105870.0,1.00425391]
[1762742197346,0.04691897,105880.0,105870.0,1.38777391]
[1762742197639,0.05789141,105900.0,105890.0,0.0944597]
[1762742197830,0.06008944,105900.0,105890.0,0.5338172]
[1762742198031,0.03866944,105900.0,105890.0,0.5338172]
[1762742198236,0.01609944,105900.0,105890.0,0.5338172]
[1762742198430,0.01609944,105900.0,105890.0,0.8946172]
[1762742198847,0.03866944,105900.0,105890.0,0.8946172]
[1762742199042,0.04066944,105900.0,105890.0,0.8956172]
[1762742199245,0.01590141,105900.0,105890.0,0.8956172]
[1762742199541,0.00114141,105900.0,105890.0,1.1316972]
[1762742199744,0.00214141,105900.0,105890.0,0.8956172]
[1762742199944,0.00214141,105900.0,105890.0,0.90508839]
[1762742200548,0.03759141,105900.0,105890.0,0.90508839]
[1762742200845,0.01502141,105900.0,105890.0,0.90908839]
[1762742201043,0.03759141,105900.0,105890.0,0.90908839]
[1762742201346,0.06120944,105900.0,105890.0,0.8996172]
[1762742202838,0.06120944,105900.0,105890.0,0.90936015]
[1762742203547,0.15566024,105900.0,105890.0,0.81490045]
[1762742204146,0.15566024,105900.0,105890.0,0.09330045]
[1762742204653,0.15566024,105900.0,105890.0,0.45410045]
[1762742206649,0.51646024,105900.0,105890.0,0.09330045]
[1762742207352,0.51646024,105900.0,105890.0,0.005]
[1762742207852,0.51646024,105900.0,105890.0,0.09330045]
[1762742208445,0.56735573,105900.0,105890.0,0.09330045]
[1762742209050,0.56735573,105900.0,105890.0,0.005]
[1762742209451,0.53827264,105900.0,105890.0,0.00055785]
[1762742210651,0.1511487,105880.0,105870.0,0.09461381]
[1762742210954,0.15334673,105880.0,105870.0,0.09461381]
[1762742211152,0.17516068,105880.0,105870.0,0.09461381]
[1762742211853,0.17616068,105880.0,105870.0,0.00814141]
[1762742213052,0.53796068,105880.0,105870.0,0.01514141]
[1762742213550,0.53696068,105880.0,105870.0,0.00714141]
[1762742213757,0.53796068,105880.0,105870.0,0.00414141]
[1762742214146,0.17716068,105880.0,105870.0,0.00114141]
[1762742214350,0.54396068,105880.0,105870.0,0.00214141]
[1762742214657,0.55696068,105880.0,105870.0,0.00314141]
[1762742214954,0.19616068,105880.0,105870.0,0.00314141]
[1762742215157,0.55696068,105880.0,105870.0,0.00314141]
[1762742219856,0.19616068,105880.0,105870.0,0.00314141]
[1762742220259,0.55696068,105880.0,105870.0,0.00314141]
[1762742220553,0.19616068,105880.0,105870.0,0.00314141]
[1762742220761,0.55696068,105880.0,105870.0,0.00314141]
[1762742223362,0.1511666,105860.0,105850.0,0.18650703]
[1762742223661,0.15336463,105860.0,105850.0,0.54730703]
[1762742223859,0.15336463,105860.0,105840.0,0.62353507]
[1762742224070,0.1511757,105850.0,105840.0,0.23819749]
[1762742224266,0.15337373,105850.0,105840.0,0.14369289]
[1762742225161,0.15337373,105850.0,105840.0,0.07622584]
[1762742226162,0.15337373,105850.0,105840.0,0.17673044]
[1762742226563,0.15437373,105850.0,105840.0,0.17673044]
[1762742226761,0.15537373,105850.0,105840.0,0.08822584]
[1762742226970,0.15537373,105850.0,105840.0,0.18023787]
[1762742227452,0.06087803,105850.0,105840.0,0.63554247]
[1762742227656,0.06087803,105850.0,105840.0,0.70300952]
[1762742227853,0.0373,105850.0,105840.0,0.70300952]
[1762742228053,0.0155,105850.0,105840.0,0.70300952]
[1762742228269,0.0155,105850.0,105840.0,0.63554247]
[1762742228766,0.0155,105850.0,105840.0,0.87174247]
[1762742228972,0.06087803,105850.0,105840.0,0.84719749]
[1762742229171,0.06087803,105850.0,105840.0,0.63554247]
[1762742229469,0.15537373,105850.0,105840.0,0.70000952]
[1762742229862,0.15537373,105850.0,105840.0,0.60550492]
[1762742230062,0.17618447,105850.0,105840.0,0.17423787]
[1762742230268,0.17718447,105850.0,105840.0,0.08622584]
[1762742230480,0.17718447,105850.0,105840.0,0.01011091]
[1762742230662,0.17718447,105850.0,105840.0,0.00911091]
[1762742230862,0.17718447,105850.0,105840.0,0.09750898]
[1762742231660,0.17618447,105850.0,105840.0,0.18190705]
[1762742231869,0.17718447,105850.0,105840.0,0.18390705]
[1762742232073,0.17718447,105850.0,105840.0,0.26096675]
[1762742232268,0.17618447,105850.0,105840.0,0.25896675]
[1762742232571,0.17718447,105850.0,105840.0,0.35347135]
[1762742232769,0.08268877,105850.0,105840.0,0.71427135]
[1762742235464,0.002,105850.0,105840.0,0.71427135]
[1762742235668,0.01364141,105860.0,105850.0,0.0944957]
[1762742235872,0.00014141,105860.0,105850.0,0.99289184]
[1762742236171,0.00014141,105860.0,105850.0,1.22905184]
[1762742236373,0.02192394,105860.0,105850.0,1.22905184]
[1762742236567,0.02192487,105860.0,105850.0,0.99289184]
[1762742236979,0.02192487,105860.0,105850.0,1.23005184]
[1762742237178,0.0878029,105860.0,105850.0,0.7226]
[1762742237376,0.1822897,105860.0,105850.0,0.7226]
[1762742237671,0.1822897,105860.0,105850.0,0.08939807]
[1762742237873,0.1952897,105860.0,105850.0,0.09039807]
[1762742238276,0.5560897,105860.0,105850.0,0.002]
[1762742238480,0.5560897,105860.0,105850.0,0.09039807]
[1762742238876,0.5560897,105860.0,105850.0,0.002]
[1762742246185,0.1540557,105850.0,105840.0,0.00011091]
[1762742246370,0.53883719,105850.0,105840.0,0.00011091]
[1762742247375,0.53983719,105850.0,105830.0,9.424e-05]
[1762742247687,0.5148646,105840.0,105830.0,9.424e-05]
[1762742247879,0.53884609,105840.0,105830.0,9.424e-05]
[1762742248583,0.17816059,105840.0,105830.0,0.18668182]
[1762742248780,0.17816059,105840.0,105830.0,0.54748182]
[1762742249485,0.17816059,105840.0,105830.0,0.55248182]
[1762742249886,0.17816059,105840.0,105830.0,0.45796822]
[1762742250087,0.17916059,105840.0,105830.0,0.46096822]
[1762742250480,0.17916059,105840.0,105830.0,0.55548172]
[1762742250782,0.17916059,105840.0,105830.0,0.55248172]
[1762742250990,0.18016059,105840.0,105830.0,0.55548172]
[1762742252185,0.06234589,105840.0,105830.0,0.55548172]
[1762742252388,0.04056243,105840.0,105830.0,0.55548172]
[1762742252586,0.01783243,105840.0,105830.0,0.55548172]
[1762742253086,0.0383644,105840.0,105830.0,0.55548172]
[1762742253280,0.0383644,105840.0,105830.0,0.93908172]
[1762742253281,0.0021144,105840.0,105830.0,0.93908172]
[1762742253588,0.0021144,105840.0,105830.0,0.70288172]
[1762742253589,0.06387243,105840.0,105830.0,0.70288172]
[1762742253987,0.15837703,105840.0,105830.0,0.70288172]
[1762742254289,0.06387243,105840.0,105830.0,0.70288172]
[1762742254888,0.08553743,105840.0,105830.0,0.70288172]
[1762742255376,0.18004203,105840.0,105830.0,0.70288172]
[1762742255684,0.08553743,105840.0,105830.0,0.70288172]
[1762742255881,0.18004203,105840.0,105830.0,0.15549424]
[1762742256075,0.54084203,105840.0,105830.0,0.15549424]
[1762742256278,0.18004203,105840.0,105830.0,0.15549424]
[1762742256476,0.54084203,105840.0,105830.0,0.15549424]
[1762742257089,0.54084203,105840.0,105830.0,0.00809424]
[1762742257582,0.54084203,105840.0,105830.0,0.00799424]
[1762742259091,0.54084203,105840.0,105830.0,0.09641593]
[1762742259694,0.54084203,105840.0,105830.0,0.09631593]
[1762742260392,0.54084203,105840.0,105830.0,0.00789424]
[1762742261493,0.54084203,105840.0,105830.0,0.09631593]
[1762742261795,0.54084203,105840.0,105830.0,0.19082943]
[1762742262293,0.54084203,105840.0,105830.0,0.00789424]
[1762742262496,0.54084203,105840.0,105830.0,0.09631593]
[1762742262988,0.54084203,105840.0,105830.0,0.00789424]
[1762742263193,0.54084203,105840.0,105830.0,0.10240784]
[1762742263393,0.54084203,105840.0,105830.0,0.18101346]
[1762742263903,0.54084203,105840.0,105830.0,0.00789424]
[1762742268084,0.1527525,105820.0,105810.0,0.07380758]
[1762742268292,0.1527614,105810.0,105800.0,0.32054542]
[1762742268597,0.15495943,105810.0,105800.0,0.68134542]
[1762742269197,0.15495943,105810.0,105800.0,0.74881247]
[1762742270598,0.06042803,105810.0,105800.0,0.82741809]